fUST/lending_fUST_20250511
["ID","MTS","AMOUNT","RATE_DAILY","PERIOD"]
[360575203,1746894632585,-500.0,8.209e-05,2]
[360575206,1746894632594,-500.0,8.209e-05,2]
[360575228,1746894632816,-500.0,8.209e-05,2]
[360575229,1746894632826,-500.0,8.209e-05,2]
[360575230,1746894632836,-500.0,8.209e-05,2]
[360575231,1746894632846,-393.84112273,8.209e-05,2]
[360575232,1746894632856,-631.6994162,8.209e-05,2]
[360575233,1746894632865,-304.40000007,8.209e-05,2]
[360575234,1746894632877,-500.0,8.209e-05,2]
[360575235,1746894632887,-500.0,8.209e-05,2]
[360575237,1746894632896,-15538.27831312,8.21e-05,2]
[360575239,1746894632908,-12343.13960951,8.21e-05,2]
[360575243,1746894632951,-5759.70117659,8.21e-05,2]
[360575244,1746894632960,-400.0,8.219e-05,2]
[360575245,1746894632969,-400.0,8.219e-05,2]
[360575246,1746894632979,-400.0,8.219e-05,2]
[360575247,1746894632989,-400.0,8.219e-05,2]
[360575248,1746894632998,-400.0,8.219e-05,2]
[360575249,1746894633008,-400.0,8.219e-05,2]
[360575250,1746894633018,-514.98418982,8.219e-05,2]
[360575251,1746894633027,-1159.96,8.219e-05,2]
[360575252,1746894633036,-600.04,8.219e-05,2]
[360575253,1746894633046,-400.0,8.219e-05,2]
[360575254,1746894633055,-400.0,8.219e-05,2]
[360575255,1746894633065,-400.0,8.219e-05,2]
[360575256,1746894633074,-400.0,8.219e-05,2]
[360575257,1746894633083,-400.0,8.219e-05,2]
[360575258,1746894633092,-400.0,8.219e-05,2]
[360575259,1746894633101,-1319.2,8.219e-05,2]
[360575260,1746894633110,-400.0,8.219e-05,2]
[360575261,1746894633120,-400.0,8.219e-05,2]
[360575262,1746894633129,-400.0,8.219e-05,2]
[360575263,1746894633139,-400.0,8.219e-05,2]
[360575264,1746894633149,-400.0,8.219e-05,2]
[360575265,1746894633159,-500.0,8.219e-05,2]
[360575266,1746894633169,-400.0,8.219e-05,2]
[360575267,1746894633178,-400.0,8.219e-05,2]
[360575268,1746894633187,-400.0,8.219e-05,2]
[360575269,1746894633197,-417.81555307,8.219e-05,2]
[360575270,1746894633207,-400.0,8.219e-05,2]
[360575271,1746894633217,-403.26739549,8.219e-05,2]
[360575272,1746894633226,-3226.04,8.219e-05,2]
[360575273,1746894633236,-400.0,8.219e-05,2]
[360575274,1746894633246,-400.0,8.219e-05,2]
[360575275,1746894633256,-707.12,8.219e-05,2]
[360575276,1746894633266,-596.13,8.219e-05,2]
[360575277,1746894633283,-400.0,8.219e-05,2]
[360575278,1746894633297,-865.26,8.219e-05,2]
[360575279,1746894633308,-400.0,8.219e-05,2]
[360575280,1746894633318,-400.0,8.219e-05,2]
[360575281,1746894633328,-400.0,8.219e-05,2]
[360575282,1746894633337,-400.0,8.219e-05,2]
[360575283,1746894633348,-1151.5,8.219e-05,2]
[360575284,1746894633358,-1999.53,8.219e-05,2]
[360575285,1746894633368,-400.0,8.219e-05,2]
[360575286,1746894633377,-578.66,8.219e-05,2]
[360575287,1746894633387,-626.8,8.219e-05,2]
[360575288,1746894633397,-400.0,8.219e-05,2]
[360575289,1746894633407,-170.87520047,8.219e-05,2]
[360575290,1746894633417,-400.0,8.219e-05,2]
[360575291,1746894633426,-767.11,8.219e-05,2]
[360575292,1746894633436,-505.64370391,8.219e-05,2]
[360575293,1746894633445,-400.0,8.219e-05,2]
[360575294,1746894633455,-400.0,8.219e-05,2]
[360575295,1746894633464,-400.0,8.219e-05,2]
[360575296,1746894633474,-400.0,8.219e-05,2]
[360575297,1746894633484,-400.0,8.219e-05,2]
[360575298,1746894633494,-400.0,8.219e-05,2]
[360575299,1746894633504,-400.0,8.219e-05,2]
[360575300,1746894633514,-400.0,8.219e-05,2]
[360575301,1746894633523,-501.98947138,8.219e-05,2]
[360575302,1746894633533,-400.0,8.219e-05,2]
[360575303,1746894633543,-400.0,8.219e-05,2]
[360575304,1746894633553,-400.0,8.219e-05,2]
[360575305,1746894633563,-501.87491743,8.219e-05,2]
[360575306,1746894633573,-400.0,8.219e-05,2]
[360575307,1746894633584,-400.0,8.219e-05,2]
[360575308,1746894633594,-400.0,8.219e-05,2]
[360575309,1746894633604,-526.14,8.219e-05,2]
[360575310,1746894633614,-400.0,8.219e-05,2]
[360575311,1746894633625,-400.0,8.219e-05,2]
[360575312,1746894633634,-400.0,8.219e-05,2]
[360575313,1746894633644,-882.24,8.219e-05,2]
[360575314,1746894633654,-400.0,8.219e-05,2]
[360575315,1746894633664,-502.66370799,8.219e-05,2]
[360575316,1746894633674,-400.0,8.219e-05,2]
[360575317,1746894633684,-1253.75,8.219e-05,2]
[360575318,1746894633694,-400.0,8.219e-05,2]
[360575319,1746894633704,-400.0,8.219e-05,2]
[360575320,1746894633713,-400.0,8.219e-05,2]
[360575321,1746894633722,-400.0,8.219e-05,2]
[360575322,1746894633733,-400.0,8.219e-05,2]
[360575323,1746894633743,-400.0,8.219e-05,2]
[360575324,1746894633754,-951.55,8.219e-05,2]
[360575325,1746894633764,-585.54,8.219e-05,2]
[360575326,1746894633774,-580.14,8.219e-05,2]
[360575327,1746894633784,-400.0,8.219e-05,2]
[360575328,1746894633794,-1928.57,8.219e-05,2]
[360575329,1746894633807,-863.47,8.219e-05,2]
[360575330,1746894633816,-400.0,8.219e-05,2]
[360575331,1746894633825,-400.0,8.219e-05,2]
[360575332,1746894633835,-400.0,8.219e-05,2]
[360575333,1746894633846,-533.97,8.219e-05,2]
[360575334,1746894633856,-400.0,8.219e-05,2]
[360575335,1746894633866,-400.0,8.219e-05,2]
[360575336,1746894633877,-400.0,8.219e-05,2]
[360575337,1746894633887,-1294.77,8.219e-05,2]
[360575338,1746894633897,-400.0,8.219e-05,2]
[360575339,1746894633907,-1052.55,8.219e-05,2]
[360575340,1746894633916,-511.96,8.219e-05,2]
[360575341,1746894633926,-400.0,8.219e-05,2]
[360575342,1746894633936,-424.29491318,8.219e-05,2]
[360575343,1746894633946,-400.0,8.219e-05,2]
[360575344,1746894633956,-400.0,8.219e-05,2]
[360575345,1746894633967,-361.33986166,8.219e-05,2]
[360575346,1746894633977,-400.0,8.219e-05,2]
[360575347,1746894633987,-400.0,8.219e-05,2]
[360575348,1746894633997,-247.09911481,8.219e-05,2]
[360575593,1746894642651,-152.90088519,8.219e-05,2]
[360575595,1746894642661,-191.79055554,8.219e-05,2]
[360575599,1746894642683,-348.28,8.219e-05,2]
[360575640,1746894643035,-8.32944446,8.219e-05,2]
[360575642,1746894643044,-1994.45,8.219e-05,2]
[360575644,1746894643054,-648.12,8.219e-05,2]
[360575646,1746894643063,-400.0,8.219e-05,2]
[360575648,1746894643072,-400.0,8.219e-05,2]
[360575650,1746894643081,-466.12,8.219e-05,2]
[360575653,1746894643091,-2733.45,8.219e-05,2]
[360575657,1746894643100,-400.0,8.219e-05,2]
[360575659,1746894643109,-664.61,8.219e-05,2]
[360575662,1746894643119,-400.0,8.219e-05,2]
[360575665,1746894643129,-400.0,8.219e-05,2]
[360575668,1746894643139,-400.0,8.219e-05,2]
[360575673,1746894643150,-400.0,8.219e-05,2]
[360575676,1746894643162,-400.0,8.219e-05,2]
[360575679,1746894643173,-400.0,8.219e-05,2]
[360575681,1746894643183,-400.0,8.219e-05,2]
[360575683,1746894643196,-400.0,8.219e-05,2]
[360575686,1746894643207,-400.0,8.219e-05,2]
[360575688,1746894643219,-400.0,8.219e-05,2]
[360575690,1746894643230,-400.0,8.219e-05,2]
[360575692,1746894643240,-400.0,8.219e-05,2]
[360575694,1746894643252,-1083.86,8.219e-05,2]
[360575696,1746894643264,-648.37,8.219e-05,2]
[360575698,1746894643276,-505.07,8.219e-05,2]
[360575700,1746894643287,-400.0,8.219e-05,2]
[360575702,1746894643298,-535.97,8.219e-05,2]
[360575704,1746894643307,-400.0,8.219e-05,2]
[360575706,1746894643320,-400.0,8.219e-05,2]
[360575708,1746894643330,-400.0,8.219e-05,2]
[360575710,1746894643340,-400.0,8.219e-05,2]
[360575712,1746894643349,-400.0,8.219e-05,2]
[360575714,1746894643360,-400.0,8.219e-05,2]
[360575716,1746894643369,-418.37,8.219e-05,2]
[360575718,1746894643379,-400.0,8.219e-05,2]
[360575720,1746894643389,-593.56,8.219e-05,2]
[360575722,1746894643399,-400.0,8.219e-05,2]
[360575724,1746894643410,-1313.61,8.219e-05,2]
[360575726,1746894643421,-1024.61,8.219e-05,2]
[360575728,1746894643431,-971.32,8.219e-05,2]
[360575730,1746894643440,-998.52,8.219e-05,2]
[360575732,1746894643450,-400.0,8.219e-05,2]
[360575734,1746894643459,-407.74207944,8.219e-05,2]
[360575736,1746894643468,-400.0,8.219e-05,2]
[360575738,1746894643477,-400.0,8.219e-05,2]
[360575740,1746894643487,-416.76,8.219e-05,2]
[360575742,1746894643496,-400.0,8.219e-05,2]
[360575744,1746894643509,-160.68257366,8.219e-05,2]
[360575746,1746894643519,-400.0,8.219e-05,2]
[360575748,1746894643528,-400.0,8.219e-05,2]
[360575751,1746894643538,-400.0,8.219e-05,2]
[360575753,1746894643548,-400.0,8.219e-05,2]
[360575756,1746894643558,-565.79,8.219e-05,2]
[360575758,1746894643568,-400.0,8.219e-05,2]
[360575760,1746894643579,-400.0,8.219e-05,2]
[360575762,1746894643589,-400.0,8.219e-05,2]
[360575763,1746894643599,-500.0,8.219e-05,2]
[360575766,1746894643609,-400.0,8.219e-05,2]
[360575768,1746894643619,-44.26341618,8.219e-05,2]
[360575827,1746894644176,-360.27730785,8.219e-05,2]
[360575829,1746894644185,-562.57,8.219e-05,2]
[360575831,1746894644195,-400.0,8.219e-05,2]
[360575833,1746894644204,-113.79269214,8.219e-05,2]
[360581753,1746895097022,282.518708,7.28e-05,2]
[360581811,1746895832619,-300.0,8.196e-05,2]
[360581812,1746895832629,-302.01953425,8.196e-05,2]
[360581813,1746895832639,-500.0,8.196e-05,2]
[360581815,1746895832649,-183.06030758,8.196e-05,2]
[360581816,1746895832658,-500.0,8.197e-05,2]
[360581817,1746895832667,-500.0,8.197e-05,2]
[360581818,1746895832676,-500.0,8.197e-05,2]
[360581819,1746895832686,-500.0,8.197e-05,2]
[360581820,1746895832695,-500.0,8.197e-05,2]
[360581821,1746895832704,-500.0,8.197e-05,2]
[360581822,1746895832714,-176.4178669,8.197e-05,2]
[360581823,1746895832723,-6967.20298113,8.2e-05,2]
[360581824,1746895832733,-207.4,8.214e-05,2]
[360581825,1746895832742,-230.82776503,8.219e-05,2]
[360581826,1746895832751,-429.72252959,8.219e-05,2]
[360581828,1746895832760,-400.0,8.219e-05,2]
[360581830,1746895832769,-400.0,8.219e-05,2]
[360581832,1746895832779,-708.27,8.219e-05,2]
[360581834,1746895832788,-400.0,8.219e-05,2]
[360581836,1746895832798,-400.0,8.219e-05,2]
[360581838,1746895832807,-600.68,8.219e-05,2]
[360581840,1746895832816,-400.0,8.219e-05,2]
[360581842,1746895832826,-400.0,8.219e-05,2]
[360581845,1746895832835,-400.0,8.219e-05,2]
[360581847,1746895832844,-400.0,8.219e-05,2]
[360581849,1746895832854,-400.0,8.219e-05,2]
[360581850,1746895832862,-400.0,8.219e-05,2]
[360581852,1746895832872,-400.0,8.219e-05,2]
[360581855,1746895832882,-400.0,8.219e-05,2]
[360581856,1746895832891,-400.0,8.219e-05,2]
[360581858,1746895832900,-400.0,8.219e-05,2]
[360581860,1746895832910,-400.0,8.219e-05,2]
[360581862,1746895832919,-492.33893853,8.219e-05,2]
[360581864,1746895832929,-561.14,8.219e-05,2]
[360581866,1746895832938,-400.0,8.219e-05,2]
[360581869,1746895832947,-400.0,8.219e-05,2]
[360581871,1746895832957,-400.0,8.219e-05,2]
[360581872,1746895832966,-400.0,8.219e-05,2]
[360581874,1746895832975,-400.0,8.219e-05,2]
[360581875,1746895832984,-217.94885016,8.219e-05,2]
[360581876,1746895832994,-400.0,8.219e-05,2]
[360581877,1746895833003,-400.0,8.219e-05,2]
[360581878,1746895833012,-400.0,8.219e-05,2]
[360581879,1746895833021,-400.0,8.219e-05,2]
[360581880,1746895833032,-446.7,8.219e-05,2]
[360581881,1746895833041,-400.0,8.219e-05,2]
[360581882,1746895833051,-400.0,8.219e-05,2]
[360581883,1746895833060,-400.0,8.219e-05,2]
[360581884,1746895833070,-400.0,8.219e-05,2]
[360581885,1746895833079,-400.0,8.219e-05,2]
[360581886,1746895833088,-400.0,8.219e-05,2]
[360581887,1746895833098,-246.22634676,8.219e-05,2]
[360581888,1746895833108,-400.0,8.219e-05,2]
[360581889,1746895833117,-400.0,8.219e-05,2]
[360581890,1746895833126,-400.0,8.219e-05,2]
[360581891,1746895833136,-229.5792919,8.219e-05,2]
[360581892,1746895833145,-621.36,8.219e-05,2]
[360581893,1746895833154,-400.0,8.219e-05,2]
[360581894,1746895833163,-400.0,8.219e-05,2]
[360581895,1746895833173,-400.93,8.219e-05,2]
[360581896,1746895833185,-400.0,8.219e-05,2]
[360581897,1746895833194,-400.0,8.219e-05,2]
[360581898,1746895833204,-956.92,8.219e-05,2]
[360581899,1746895833213,-400.0,8.219e-05,2]
[360581900,1746895833223,-400.0,8.219e-05,2]
[360581901,1746895833233,-400.0,8.219e-05,2]
[360581902,1746895833242,-400.0,8.219e-05,2]
[360581903,1746895833253,-400.0,8.219e-05,2]
[360581904,1746895833263,-400.0,8.219e-05,2]
[360581905,1746895833271,-400.0,8.219e-05,2]
[360581906,1746895833281,-400.0,8.219e-05,2]
[360581907,1746895833464,-400.0,8.219e-05,2]
[360581908,1746895833490,-400.0,8.219e-05,2]
[360581909,1746895833500,-382.85331138,8.219e-05,2]
[360581910,1746895833510,-400.0,8.219e-05,2]
[360581911,1746895833519,-400.0,8.219e-05,2]
[360581912,1746895833530,-400.0,8.219e-05,2]
[360581913,1746895833540,-396.38782524,8.219e-05,2]
[360581914,1746895833550,-400.0,8.219e-05,2]
[360581915,1746895833559,-419.39672928,8.219e-05,2]
[360581916,1746895833568,-1120.82,8.219e-05,2]
[360581917,1746895833578,-400.0,8.219e-05,2]
[360581918,1746895833587,-223.34141415,8.219e-05,2]
[360581919,1746895833596,-451.71,8.219e-05,2]
[360581920,1746895833606,-400.0,8.219e-05,2]
[360581921,1746895833615,-400.0,8.219e-05,2]
[360581922,1746895833624,-400.0,8.219e-05,2]
[360581923,1746895833634,-1696.08,8.219e-05,2]
[360581924,1746895833645,-400.0,8.219e-05,2]
[360581925,1746895833654,-400.0,8.219e-05,2]
[360581926,1746895833664,-400.0,8.219e-05,2]
[360581927,1746895833673,-413.65758683,8.219e-05,2]
[360581928,1746895833683,-400.0,8.219e-05,2]
[360581929,1746895833692,-400.0,8.219e-05,2]
[360581930,1746895833701,-951.01,8.219e-05,2]
[360581931,1746895833710,-400.0,8.219e-05,2]
[360581932,1746895833719,-400.0,8.219e-05,2]
[360581933,1746895833728,-400.0,8.219e-05,2]
[360581934,1746895833738,-401.85658622,8.219e-05,2]
[360581935,1746895833747,-400.0,8.219e-05,2]
[360581936,1746895833756,-400.0,8.219e-05,2]
[360581937,1746895833766,-221.39884723,8.219e-05,2]
[360581938,1746895833774,-400.0,8.219e-05,2]
[360581939,1746895833783,-400.0,8.219e-05,2]
[360581940,1746895833792,-400.0,8.219e-05,2]
[360581941,1746895833802,-400.0,8.219e-05,2]
[360581942,1746895833811,-511.73,8.219e-05,2]
[360581943,1746895833820,-400.0,8.219e-05,2]
[360581944,1746895833829,-1008.69,8.219e-05,2]
[360581945,1746895833839,-324.96252777,8.219e-05,2]
[360581946,1746895833848,-400.0,8.219e-05,2]
[360581947,1746895833857,-400.0,8.219e-05,2]
[360581948,1746895833866,-400.0,8.219e-05,2]
[360581949,1746895833875,-206.01482037,8.219e-05,2]
[360582270,1746895843794,-415.10517963,8.219e-05,2]
[360582273,1746895843804,-392.67174165,8.219e-05,2]
[360582276,1746895843813,-400.0,8.219e-05,2]
[360582279,1746895843823,-400.0,8.219e-05,2]
[360582282,1746895843833,-400.0,8.219e-05,2]
[360582285,1746895843844,-845.48,8.219e-05,2]
[360582288,1746895843853,-400.0,8.219e-05,2]
[360582291,1746895843863,-909.98002704,8.219e-05,2]
[360582584,1746895846815,-328.27997296,8.219e-05,2]
[360582585,1746895846826,-829.21,8.219e-05,2]
[360582587,1746895846836,-400.0,8.219e-05,2]
[360582589,1746895846845,-400.0,8.219e-05,2]
[360582591,1746895846855,-400.0,8.219e-05,2]
[360582593,1746895846864,-735.15,8.219e-05,2]
[360582596,1746895846874,-400.0,8.219e-05,2]
[360582597,1746895846884,-400.0,8.219e-05,2]
[360582600,1746895846894,-400.0,8.219e-05,2]
[360582602,1746895846903,-400.0,8.219e-05,2]
[360582605,1746895846912,-400.0,8.219e-05,2]
[360582607,1746895846921,-568.83,8.219e-05,2]
[360582609,1746895846930,-400.0,8.219e-05,2]
[360582611,1746895846940,-930.85,8.219e-05,2]
[360582613,1746895846950,-400.0,8.219e-05,2]
[360582615,1746895846959,-400.0,8.219e-05,2]
[360582617,1746895846968,-400.0,8.219e-05,2]
[360582619,1746895846977,-400.0,8.219e-05,2]
[360582621,1746895846986,-1334.05,8.219e-05,2]
[360582623,1746895846996,-400.0,8.219e-05,2]
[360582625,1746895847007,-400.0,8.219e-05,2]
[360582627,1746895847016,-155.40664567,8.219e-05,2]
[360582631,1746895847036,-756.49335433,8.219e-05,2]
[360582633,1746895847047,-400.0,8.219e-05,2]
[360582635,1746895847056,-542.22,8.219e-05,2]
[360582637,1746895847066,-400.0,8.219e-05,2]
[360582639,1746895847075,-827.49,8.219e-05,2]
[360582641,1746895847084,-333.04765145,8.219e-05,2]
[360582644,1746895847103,-66.95234855,8.219e-05,2]
[360582645,1746895847112,-400.0,8.219e-05,2]
[360582647,1746895847121,-400.0,8.219e-05,2]
[360582650,1746895847133,-490.63,8.219e-05,2]
[360582651,1746895847143,-430.15,8.219e-05,2]
[360582653,1746895847152,-400.0,8.219e-05,2]
[360582656,1746895847163,-400.0,8.219e-05,2]
[360582658,1746895847172,-525.55,8.219e-05,2]
[360582660,1746895847183,-400.0,8.219e-05,2]
[360582661,1746895847195,-400.0,8.219e-05,2]
[360582663,1746895847205,-400.0,8.219e-05,2]
[360582665,1746895847214,-756.96889664,8.219e-05,2]
[360586292,1746896037785,344.12,8.02e-05,2]
[360586298,1746896760540,1000.0,0.00013,7]
[360586299,1746896790266,9604.6977768,7.233e-05,2]
[360586300,1746896802776,6470.0,0.00022,120]
[360586301,1746896813578,1000.0,0.00013,7]
[360586306,1746896831337,2000.0,0.00013,7]
[360586310,1746896853910,3000.0,0.00013,7]
[360586314,1746896950343,2287.99712065,0.00013,7]
[360586326,1746897031799,-404.0,8.165e-05,2]
[360586327,1746897031810,-300.0,8.183e-05,2]
[360586329,1746897031822,-300.0,8.183e-05,2]
[360586330,1746897031836,-236.0,8.183e-05,2]
[360586331,1746897031847,-1200.0,8.183e-05,2]
[360586332,1746897031857,-297.0,8.183e-05,2]
[360586333,1746897031867,-396.33751488,8.184e-05,2]
[360586334,1746897031878,-500.0,8.184e-05,2]
[360586335,1746897031889,-472.77068541,8.184e-05,2]
[360586336,1746897031899,-500.0,8.184e-05,2]
[360586337,1746897031909,-500.0,8.184e-05,2]
[360586338,1746897031919,-500.0,8.184e-05,2]
[360586339,1746897031929,-187.0590128,8.184e-05,2]
[360586340,1746897031939,-500.0,8.184e-05,2]
[360586341,1746897031949,-500.0,8.184e-05,2]
[360586342,1746897031959,-500.0,8.184e-05,2]
[360586343,1746897031969,-500.0,8.184e-05,2]
[360586344,1746897031979,-500.0,8.184e-05,2]
[360586345,1746897031989,-236.85549069,8.184e-05,2]
[360586346,1746897031999,-500.0,8.184e-05,2]
[360586347,1746897032009,-570.57710523,8.184e-05,2]
[360586348,1746897032018,-439.78942211,8.184e-05,2]
[360586349,1746897032028,-500.0,8.184e-05,2]
[360586350,1746897032038,-500.0,8.184e-05,2]
[360586351,1746897032047,-500.0,8.184e-05,2]
[360586352,1746897032056,-500.0,8.184e-05,2]
[360586353,1746897032066,-25821.68671394,8.184e-05,2]
[360586354,1746897032076,-207.4,8.214e-05,2]
[360586355,1746897032090,-463.96024293,8.219e-05,2]
[360586356,1746897032100,-400.0,8.219e-05,2]
[360586357,1746897032110,-401.47199834,8.219e-05,2]
[360586358,1746897032120,-945.92,8.219e-05,2]
[360586359,1746897032130,-400.0,8.219e-05,2]
[360586360,1746897032140,-400.0,8.219e-05,2]
[360586361,1746897032150,-400.0,8.219e-05,2]
[360586362,1746897032160,-400.0,8.219e-05,2]
[360586363,1746897032171,-400.0,8.219e-05,2]
[360586364,1746897032182,-400.0,8.219e-05,2]
[360586365,1746897032192,-400.0,8.219e-05,2]
[360586366,1746897032202,-400.0,8.219e-05,2]
[360586367,1746897032211,-401.17572262,8.219e-05,2]
[360586368,1746897032221,-500.0,8.219e-05,2]
[360586369,1746897032230,-500.0,8.219e-05,2]
[360586370,1746897032240,-400.0,8.219e-05,2]
[360586371,1746897032250,-151.0,8.219e-05,2]
[360586372,1746897032260,-500.0,8.219e-05,2]
[360586373,1746897032269,-400.0,8.219e-05,2]
[360586374,1746897032278,-500.0,8.219e-05,2]
[360586375,1746897032288,-548.44337725,8.219e-05,2]
[360586376,1746897032298,-400.0,8.219e-05,2]
[360586377,1746897032308,-400.0,8.219e-05,2]
[360586378,1746897032317,-500.0,8.219e-05,2]
[360586379,1746897032326,-400.0,8.219e-05,2]
[360586380,1746897032340,-151.0,8.219e-05,2]
[360586381,1746897032349,-400.0,8.219e-05,2]
[360586382,1746897032359,-200.2307836,8.219e-05,2]
[360586383,1746897032368,-500.0,8.219e-05,2]
[360586384,1746897032379,-151.0,8.219e-05,2]
[360586385,1746897032388,-245.91518401,8.219e-05,2]
[360586386,1746897032397,-400.0,8.219e-05,2]
[360586387,1746897032406,-400.0,8.219e-05,2]
[360586388,1746897032415,-400.0,8.219e-05,2]
[360586389,1746897032425,-401.46241826,8.219e-05,2]
[360586390,1746897032435,-273.06723046,8.219e-05,2]
[360586391,1746897032444,-400.0,8.219e-05,2]
[360586392,1746897032454,-400.0,8.219e-05,2]
[360586393,1746897032463,-400.0,8.219e-05,2]
[360586394,1746897032473,-401.5324204,8.219e-05,2]
[360586395,1746897032484,-400.0,8.219e-05,2]
[360586396,1746897032493,-546.47881938,8.219e-05,2]
[360586397,1746897032503,-400.0,8.219e-05,2]
[360586398,1746897032512,-400.0,8.219e-05,2]
[360586400,1746897032522,-400.0,8.219e-05,2]
[360586402,1746897032533,-400.0,8.219e-05,2]
[360586404,1746897032543,-1311.8,8.219e-05,2]
[360586406,1746897032552,-400.0,8.219e-05,2]
[360586408,1746897032563,-407.80801258,8.219e-05,2]
[360586410,1746897032572,-1226.22,8.219e-05,2]
[360586412,1746897032587,-402.58863215,8.219e-05,2]
[360586414,1746897032596,-400.0,8.219e-05,2]
[360586416,1746897032607,-400.0,8.219e-05,2]
[360586418,1746897032616,-400.0,8.219e-05,2]
[360586420,1746897032625,-400.0,8.219e-05,2]
[360586422,1746897032635,-400.0,8.219e-05,2]
[360586424,1746897032646,-400.0,8.219e-05,2]
[360586426,1746897032665,-400.0,8.219e-05,2]
[360586427,1746897032674,-400.0,8.219e-05,2]
[360586428,1746897032684,-498.39,8.219e-05,2]
[360586429,1746897032694,-400.0,8.219e-05,2]
[360586430,1746897032704,-502.42782163,8.219e-05,2]
[360586431,1746897032714,-694.38,8.219e-05,2]
[360586432,1746897032723,-499.82,8.219e-05,2]
[360586433,1746897032732,-400.0,8.219e-05,2]
[360586434,1746897032742,-400.0,8.219e-05,2]
[360586435,1746897032751,-400.0,8.219e-05,2]
[360586436,1746897032760,-196.11430433,8.219e-05,2]
[360586437,1746897032770,-791.46,8.219e-05,2]
[360586438,1746897032780,-400.0,8.219e-05,2]
[360586439,1746897032789,-400.0,8.219e-05,2]
[360586440,1746897032808,-1332.4,8.219e-05,2]
[360586441,1746897032819,-317.26357533,8.219e-05,2]
[360586442,1746897032829,-400.0,8.219e-05,2]
[360586443,1746897032841,-400.0,8.219e-05,2]
[360586444,1746897032851,-396.0,8.219e-05,2]
[360586445,1746897032861,-500.0,8.219e-05,2]
[360586446,1746897032871,-400.0,8.219e-05,2]
[360586447,1746897032880,-400.0,8.219e-05,2]
[360586448,1746897032890,-646.85,8.219e-05,2]
[360586449,1746897032900,-400.0,8.219e-05,2]
[360586450,1746897032910,-400.0,8.219e-05,2]
[360586451,1746897032920,-400.0,8.219e-05,2]
[360586452,1746897032930,-400.0,8.219e-05,2]
[360586453,1746897032939,-400.0,8.219e-05,2]
[360586454,1746897032949,-531.10544261,8.219e-05,2]
[360586455,1746897032959,-400.0,8.219e-05,2]
[360586456,1746897032969,-400.0,8.219e-05,2]
[360586457,1746897032979,-587.88,8.219e-05,2]
[360586458,1746897032988,-400.0,8.219e-05,2]
[360586459,1746897032999,-400.0,8.219e-05,2]
[360586460,1746897033008,-446.65,8.219e-05,2]
[360586461,1746897033018,-400.0,8.219e-05,2]
[360586462,1746897033028,-500.0,8.219e-05,2]
[360586463,1746897033038,-400.0,8.219e-05,2]
[360586464,1746897033049,-503.76752121,8.219e-05,2]
[360586465,1746897033059,-400.0,8.219e-05,2]
[360586466,1746897033070,-400.0,8.219e-05,2]
[360586467,1746897033083,-400.0,8.219e-05,2]
[360586468,1746897033095,-400.0,8.219e-05,2]
[360586469,1746897033105,-400.0,8.219e-05,2]
[360586470,1746897033116,-400.0,8.219e-05,2]
[360586471,1746897033127,-843.59,8.219e-05,2]
[360586472,1746897033138,-400.0,8.219e-05,2]
[360586473,1746897033149,-1658.74,8.219e-05,2]
[360586474,1746897033159,-400.0,8.219e-05,2]
[360586475,1746897033170,-500.0,8.219e-05,2]
[360586476,1746897033180,-400.0,8.219e-05,2]
[360586477,1746897033190,-400.0,8.219e-05,2]
[360586478,1746897033473,-400.0,8.219e-05,2]
[360586479,1746897033484,-847.54,8.219e-05,2]
[360586480,1746897033495,-400.0,8.219e-05,2]
[360586481,1746897033506,-400.0,8.219e-05,2]
[360586482,1746897033516,-400.0,8.219e-05,2]
[360586483,1746897033527,-400.0,8.219e-05,2]
[360586484,1746897033536,-400.0,8.219e-05,2]
[360586485,1746897033547,-400.0,8.219e-05,2]
[360586486,1746897033556,-1055.37,8.219e-05,2]